Cogmind - Beta 13 @@@ ROGUE MODE // 2024.05.21 @ 17:20:28 Player: Lunace Result: Self-destructed Performance ------------- Evolutions (3) 1500 Regions Visited (4) 800 Robots Destroyed (49) 245 Value Destroyed (1149) 1149 Prototype IDs (5) 100 Alien Tech Used (0) 0 Bonus (2) 2 TOTAL SCORE: 3796 Bonus ------- High Alert Combat Kills 2 Cogmind --------- Core Integrity 536/700 Matter 5/300 Energy 280/280 System Corruption 3% Temperature Cool (0) Movement Treading (170) Location -7/Factory Parts ------- > --- POWER (1) -------- Cooled Ion Engine > --- PROPULSION (4) --- Armored Treads Armored Treads Armored Treads > --- UTILITY (6) ------ Medium Storage Unit > --- WEAPON (2) ------- Mini Grenade Launcher Mini Grenade Launcher > --- INVENTORY (10) --- Light Ion Engine Aerolev Unit Improved Airjet Cesium-ion Thruster Small Storage Unit Signal Interpreter Improved Signal Interpreter Arc Projector Peak State ------------ > --- POWER ------------ Cooled Ion Engine > --- PROPULSION ------- Light Treads Armored Treads Armored Treads Improved Airjet > --- UTILITY ---------- Medium Storage Unit Hardened Heavy Armor Plating Shield Generator > --- WEAPON ----------- Arc Projector Mini Grenade Launcher > --- INVENTORY -------- Light Ion Engine Armored Treads Cesium-ion Thruster Small Storage Unit Signal Interpreter Improved Signal Interpreter Arc Projector Arc Projector Mini Grenade Launcher [Rating: 34] Favorites ----------- Power Cooled Ion Engine Engine Cooled Ion Engine Propulsion Light Treads Treads Light Treads Hover Unit Aerolev Unit Utility Small Storage Unit Device Shield Generator Storage Small Storage Unit Protection Hardened Heavy Armor Plating Weapon Light Assault Rifle Energy Gun Arc Projector Ballistic Gun Light Assault Rifle Launcher Mini Grenade Launcher Build | -11 -10 -9 -8 -7 ------- Run | Yrd Mat Mat Mat Fac Slots Evolved 6 | . . 2 2 2 Power . | . . . . . Propulsion 2 | . . 2 . . Utility 4 | . . . 2 2 Weapon . | . . . . . Parts Attached 37 | 8 6 4 11 8 Power 2 | 1 . 1 . . Engine 2 | 1 . 1 . . Core . | . . . . . Reactor . | . . . . . Propulsion 10 | 2 1 . 3 4 Treads 8 | 2 1 . 3 2 Leg . | . . . . . Wheel . | . . . . . Hover 2 | . . . . 2 Flight . | . . . . . Utility 12 | 3 3 1 5 . Device 5 | 2 2 . 1 . Storage 2 | 1 . . 1 . Processor . | . . . . . Hackware . | . . . . . Protection 5 | . 1 1 3 . Artifact . | . . . . . Weapon 13 | 2 2 2 3 4 Energy Gun 2 | . . . . 2 Energy Cannon . | . . . . . Ballistic Gun 5 | 2 1 1 1 . Ballistic Cannon . | . . . . . Launcher 6 | . 1 1 2 2 Special Weapon . | . . . . . Impact Weapon . | . . . . . Slashing Weapon . | . . . . . Piercing Weapon . | . . . . . Special Melee Weapon . | . . . . . Unidentified Prototypes 3 | . . 1 . 2 Parts Lost 6 | . 2 . . 4 Power . | . . . . . Propulsion 1 | . . . . 1 Utility 4 | . 2 . . 2 Weapon 1 | . . . . 1 Highest Loss Streak 4 | . 1 . . 4 To Critical Strikes . | . . . . . Average Slot Usage (%) 84 | . 95 77 84 74 Engine 10 | . 14 11 9 7 Treads 27 | . 27 22 31 29 Device 5 | . 7 . 6 6 Storage 10 | . 14 11 9 7 Protection 7 | . 3 11 10 6 Ballistic Gun 13 | . 25 11 11 . Launcher 7 | . 2 11 6 10 Naked Turns . | . . . . . Heaviest Build 45 | 13 23 27 42 45 Greatest Support 80 | 40 40 40 80 80 Greatest Overweight (x) 1 | 1 . . . . Average Overweight (x) . | . . . . . Largest Inventory Capacity 10 | 8 8 8 10 10 Average Capacity 8 | 7 8 8 8 10 Most Carried 10 | 2 8 8 8 10 Average Carried 5 | . 3 7 6 8 Final Capacity 10 | 8 8 8 10 10 Final Carried 8 | 2 8 7 8 8 Class Distribution -------------------- 100% | Mutant Dominant Class ---------------- Mutant | -10/Materials Mutant | -9/Materials Mutant | -8/Materials Mutant | -7/Factory Resources | -11 -10 -9 -8 -7 ----------- Run | Yrd Mat Mat Mat Fac Matter Collected 848 | 316 157 33 274 68 Remotely 40 | . 40 . . . Salvage Created 1232 | 76 450 124 430 152 Parts 89 | 10 21 15 33 10 Haulers Intercepted 3 | . 1 . 2 . Recyclers Shooed 1 | . . . 1 . Parts Field Recycled . | . . . . . Retrieved Matter . | . . . . . Parts Self-Destructed . | . . . . . Prevented . | . . . . . Kills | -11 -10 -9 -8 -7 ------- Run | Yrd Mat Mat Mat Fac Combat Hostiles Destroyed 31 | . 8 7 8 8 Guns 12 | . 8 . 4 . AOE 19 | . . 7 4 8 Classes Destroyed 11 | 1 6 . 2 2 Worker 2 | . 1 . . 1 Builder 3 | . . . . 3 Tunneler 4 | 4 . . . . Hauler 3 | . 1 . 2 . Recycler 2 | . 1 . 1 . Watcher 4 | . 1 1 2 . Swarmer 13 | . 3 7 3 . Grunt 13 | . 5 . 2 6 Sentry 3 | . . . 2 1 Hunter 1 | . . . 1 . Programmer 1 | . . . . 1 Best Kill Streak 8 | 1 5 4 8 8 Combat Bots Only 7 | . 3 4 5 7 Max Kills in Single Turn 4 | 1 1 3 4 2 Gunslinging . | . . . . . Exploded 3 | . . 3 2 2 Melee . | . . . . . Uniques/NPCs Destroyed . | . . . . . Combat | -11 -10 -9 -8 -7 -------- Run | Yrd Mat Mat Mat Fac Hostile Shots Fired 414 | . 40 15 35 324 Missed 164 | . 9 4 9 142 Damage Taken 2359 | . 453 121 306 1479 Core 313 | . 108 31 10 164 Absorbed by Shields 244 | . . . 93 151 Regen/Repaired (Parts) 126 | . 126 . . . Core Remaining (%) 86 | 100 56 92 98 . Volleys Fired 125 | 18 51 7 30 19 Largest 2 | 2 2 1 2 2 Hottest 60 | 40 40 33 60 60 Shots Fired 226 | 36 102 7 51 30 Gun 188 | 36 102 2 41 7 Cannon . | . . . . . Launcher 38 | . . 5 10 23 Special . | . . . . . Kinetic 181 | 36 102 2 41 . Thermal . | . . . . . Explosive 27 | . . . 4 23 Electromagnetic 18 | . . 5 6 7 Robot Hit Streak 15 | 7 15 1 5 9 Robot Miss Streak 7 | 3 7 4 2 3 Penetration Max . | . . . . . Secondary Targets . | . . . . . Shots Hit Robots 137 | 23 65 2 29 18 Core Hits 95 | 8 26 7 21 33 Critical Kills 1 | . 1 . . . Critical Parts Destroyed . | . . . . . Critical Strikes 1 | . 1 . . . Destroy 1 | . 1 . . . Melee Attacks . | . . . . . Impact . | . . . . . Slashing . | . . . . . Piercing . | . . . . . Sneak Attacks . | . . . . . Combat Hostiles . | . . . . . Follow-up Attacks . | . . . . . Damage Inflicted 3242 | 191 561 250 871 1369 Guns 1247 | 191 561 34 393 68 Cannons . | . . . . . Explosions 1984 | . . 216 478 1290 Melee . | . . . . . Ramming 11 | . . . . 11 Kinetic 1179 | 191 561 34 393 . Thermal 104 | . . 104 . . Explosive 1661 | . . . 371 1290 Electromagnetic 287 | . . 112 107 68 Impact . | . . . . . Slashing . | . . . . . Piercing . | . . . . . Highest Corruption 3 | . . . 1 3 Average Corruption 1 | . . . 1 2 Corruption Purged . | . . . . . Corruption Blocked . | . . . . . Effects 4 | . . . 3 1 Message Errors 1 | . . . 1 . Matter Fused 3 | . . . 2 1 Overload Shots . | . . . . . Overflow Damage 42 | . . 8 14 20 Projectiles . | . . . . . Explosions 42 | . . 8 14 20 Melee . | . . . . . Knockbacks . | . . . . . Impact . | . . . . . Kinetic . | . . . . . Secondary . | . . . . . Self-Inflicted Damage 173 | . . 28 31 114 Shots 9 | . . 2 2 5 Rammed 2 | . . . . 2 Targets Rammed 2 | . . . . 2 Kicked . | . . . . . Crushed . | . . . . . Highest Temperature 204 | . 25 . 25 204 Average Temperature 38 | . 10 . 10 74 Received Heat Transfer 643 | . 204 . 57 382 Siege Activations . | . . . . . Robots Corrupted . | . . . . . Combat Hostiles . | . . . . . Parts Fried . | . . . . . Impact Corruptions . | . . . . . Robots Melted . | . . . . . Combat Hostiles . | . . . . . Parts Melted . | . . . . . Heat Transferred 50 | . . 50 . . Parts Sabotaged . | . . . . . Parts Stolen . | . . . . . Parts Stripped . | . . . . . Power Chain Reactions 3 | . . 3 . . Alert | -11 -10 -9 -8 -7 ------- Run | Yrd Mat Mat Mat Fac Peak Influence 421 | 20 303 257 421 371 Initial 108 | . 13 44 108 100 Average 151 | 9 170 137 214 158 Maximum Alert Level 2 | . 1 1 2 1 Low Security (%) 65 | 100 62 61 50 71 Level 1 31 | . 37 38 35 28 Level 2 2 | . . . 13 . Level 3 . | . . . . . Level 4 . | . . . . . Level 5 . | . . . . . High Security . | . . . . . Max Security . | . . . . . Squads Dispatched 7 | . 1 . . 6 Investigation 1 | . . . . 1 Extermination 1 | . . . . 1 Reinforcement 2 | . 1 . . 1 Assault . | . . . . . Garrison 3 | . . . . 3 Intercept . | . . . . . Searches Triggered . | . . . . . Construction Impeded 1 | . . . . 1 Haulers Reinforced . | . . . . . Active Scanning Responses . | . . . . . Cargo Convoy Interrupts . | . . . . . Stealth | -11 -10 -9 -8 -7 --------- Run | Yrd Mat Mat Mat Fac Distress Signals 2 | . . . 2 . Communications Jammed . | . . . . . Distress Signals . | . . . . . Times Spotted 51 | . 15 9 16 11 Peak Tracking Total 7 | . 6 4 7 5 Tactical Retreats . | . . . . . Traps | -11 -10 -9 -8 -7 ------- Run | Yrd Mat Mat Mat Fac Traps Triggered 3 | . 2 . . 1 Indirectly . | . . . . . Trap Hack Attempts . | . . . . . Triggered . | . . . . . Disarmed . | . . . . . Reprogrammed . | . . . . . Reused . | . . . . . Traps Extracted . | . . . . . Installed . | . . . . . Triggered . | . . . . . Machines | -11 -10 -9 -8 -7 ---------- Run | Yrd Mat Mat Mat Fac Machines Disabled 4 | . . . 1 3 Max in Single Turn 2 | . . . 1 2 Machines Repaired . | . . . . . Machines Dismantled . | . . . . . Machines Sabotaged . | . . . . . Overloaded Fab Kills . | . . . . . Hacking | -11 -10 -9 -8 -7 --------- Run | Yrd Mat Mat Mat Fac Machines Accessed 14 | . 5 2 6 1 Terminals 12 | . 4 2 6 . Fabricators . | . . . . . Repair Stations 1 | . 1 . . . Recycling Units . | . . . . . Scanalyzers . | . . . . . Garrison Access 1 | . . . . 1 Total Hacks 31 | . 11 4 12 4 Successful 14 | . 7 2 5 . Failed 17 | . 4 2 7 4 Catastrophic 1 | . 1 . . . Database Lockouts . | . . . . . Manual 20 | . 7 4 8 1 Terminals 25 | . 9 4 12 . Fabricators . | . . . . . Repair Stations 2 | . 2 . . . Recycling Units . | . . . . . Scanalyzers . | . . . . . Garrison Access 4 | . . . . 4 Terminal Hacks 4 | . 2 . 2 . Record 1 | . . . 1 . Prototype ID Bank 1 | . . . 1 . Recall Investigation 1 | . 1 . . . Zone Layout 1 | . 1 . . . Fabricator Hacks . | . . . . . Repair Station Hacks 2 | . 2 . . . Scan Component 1 | . 1 . . . Repair 1 | . 1 . . . Recycling Unit Hacks . | . . . . . Scanalyzer . | . . . . . Garrison Access Hacks . | . . . . . Unauthorized Hacks 8 | . 3 2 3 . Terminals 8 | . 3 2 3 . Botnet 7 | . 3 1 3 . Operators 1 | . . 1 . . Fabricators . | . . . . . Repair Stations . | . . . . . Recycling Units . | . . . . . Scanalyzers . | . . . . . Garrison Access . | . . . . . Data Cores Recovered . | . . . . . Used . | . . . . . Hacking Detections 14 | . 5 2 6 1 Full Trace Events 1 | . . . . 1 Feedback Events . | . . . . . Feedback Blocked . | . . . . . Robot Schematics Acquired . | . . . . . Robots Built . | . . . . . Authchips . | . . . . . Time . | . . . . . Total Robot Build Rating . | . . . . . Part Schematics Acquired . | . . . . . Parts Built . | . . . . . Authchips . | . . . . . Time . | . . . . . Total Part Build Rating . | . . . . . Parts Repaired 1 | . 1 . . . Time 26 | . 26 . . . Parts Recycled . | . . . . . Recycled Matter . | . . . . . Retrieved Matter . | . . . . . Retrieved Components . | . . . . . Parts Scanalyzed . | . . . . . Part Schematics Acquired . | . . . . . Parts Damaged . | . . . . . Bothacking | -11 -10 -9 -8 -7 ------------ Run | Yrd Mat Mat Mat Fac Used RIF Installer . | . . . . . Robots Hacked . | . . . . . Non-combat . | . . . . . Combat . | . . . . . Robot Hacks Applied . | . . . . . Relay Couplers Released . | . . . . . Fabnet Peak Effective % . | . . . . . Robots Rewired . | . . . . . Allies Hacked . | . . . . . Hacks Repelled . | . . . . . Allies | -11 -10 -9 -8 -7 -------- Run | Yrd Mat Mat Mat Fac Total Allies . | . . . . . Largest Group . | . . . . . Highest-Rated Group . | . . . . . Highest-Rated Ally . | . . . . . Total Orders . | . . . . . Ally Attacks . | . . . . . Total Damage . | . . . . . Kills . | . . . . . Allies Corrupted . | . . . . . Allies Melted . | . . . . . Intel | -11 -10 -9 -8 -7 ------- Run | Yrd Mat Mat Mat Fac Robot Analysis Total . | . . . . . Derelict Logs Recovered . | . . . . . Drone Launches . | . . . . . Drone Recoveries . | . . . . . Exploration | -11 -10 -9 -8 -7 ------------- Run | Yrd Mat Mat Mat Fac Turns Passed 1948 | 235 580 363 418 352 Spaces Moved 917 | 112 243 212 183 167 Core 5 | 5 . . . . Treads 912 | 107 243 212 183 167 Legs . | . . . . . Wheels . | . . . . . Hover . | . . . . . Flight . | . . . . . Fastest Speed 50 | 50 160 160 160 166 Average Speed 161 | 156 160 160 165 167 Slowest Speed 170 | 160 160 160 167 170 Overloaded Moves . | . . . . . Propulsion Burnouts . | . . . . . Robots Hopped . | . . . . . Cave-ins Triggered . | . . . . . Exploration Rate (%) 21 | 6 47 23 27 4 Regions Visited 4 Branch Regions . Pre-discovered Areas . | . . . . . Known Exits Taken . | . . . . . Unknown Exits Taken 4 | 1 1 1 1 . Scrap Searched . | . . . . . Spaces Dug . | . . . . . Terrain Destroyed 75 | . . 16 24 35 Melee . | . . . . . Projectile . | . . . . . AOE 75 | . . 16 24 35 Terrain Rammed . | . . . . . Walls Destroyed . | . . . . . Machines Disabled . | . . . . . Actions | -11 -10 -9 -8 -7 --------- Run | Yrd Mat Mat Mat Fac Total 1178 | 139 352 229 248 210 Wait 53 | . 43 2 8 . Move 913 | 111 242 211 182 167 Hop . | . . . . . Pick Up 20 | 1 7 1 7 4 Fast Attach 22 | 8 5 1 4 4 Attach 5 | . 1 . 2 2 Detach 5 | 1 . . 1 3 Swap 10 | . . 3 5 2 Drop 23 | . 3 4 9 7 Fire 125 | 18 51 7 30 19 Melee . | . . . . . Ram . | . . . . . Kick . | . . . . . Crush 2 | . . . . 2 Escape Stasis . | . . . . . Rewire . | . . . . . Trap . | . . . . . Miscellaneous . | . . . . . Route ------- -11/Scrapyard -10/Materials -9/Materials -8/Materials -7/Factory History --------- Turn | Location | Event 9 | -11/Scrapyard | Discovered new exit (range 15) 236 | -11/Scrapyard | Entered Materials 317 | -10/Materials | Build established: Mutant 543 | -10/Materials | Repaired Lgt. Treads 633 | -10/Materials | Discovered new exit (range 11) 816 | -10/Materials | Entered another Materials area 816 | -9/Materials | Evolved 2 slots: Propulsion x2 1172 | -9/Materials | Discovered new exit (range 4) 1179 | -9/Materials | Entered another Materials area 1179 | -8/Materials | Evolved 2 slots: Utility x2 1541 | -8/Materials | Discovered new exit (range 15) 1597 | -8/Materials | Entered Factory 1597 | -7/Factory | Evolved 2 slots: Utility x2 1891 | -7/Factory | Destroyed 7 combat bots 1949 | -7/Factory | Self-destructed Last Messages --------------- 01915_ U-05 Engineer lays Concrete. 01919_ Y-54 Guardian destroyed. 01919_ U-05 Engineer lays Concrete. 01919_ Arc Projector destroyed. 01920_ U-05 Engineer lays Concrete. 01924_ Acquired 68 matter. 01924_ U-05 Engineer lays Concrete. 01926_ Destroyed Welding Torch. 01926_ U-05 Engineer destroyed. 01928_ U-05 Engineer lays Concrete. 01929_ Manufacturing Mainframe disabled. 01929_ K-01 Serf destroyed. 01930_ U-05 Engineer lays Concrete. 01932_ P-60 Hacker destroyed. 01932_ Hrd. Heavy Armor Plating destroyed. 01932_ Destroyed Hrd. Heavy Armor Plating. 01934_ U-05 Engineer lays Concrete. 01935_ System corrupted: Matter fused (-8). 01935_ Lgt. Treads destroyed. 01935_ U-05 Engineer lays Concrete. Map ----- +----------------------------------------------------+ | ????# """ # # "Y" #???????????????????? | | ????# """ # # " " #???????????????????? | | ????# + + """ #???????????????????? | | ????# """ # # """ #???????????????????? | | ????# """ # # """ #???????????????????? | | ????# """ # # [ #???????????????????? | | ????# # ###########???????????????????? | | ????########## #?????????????????????????????? | | ???????? ?# #?####????????????????????????? | | ?????? ?# #? ????????????????????????? | | ?????""""""" # # """? ??????????????????????? | | ?????? # # """? ??????????????????????? | | ?? """"""""" # # """" "?????????????????????? | | ???? # # """" """???????????????????? | | ??????####+ # ??????????????????? | | ??????# # """" """" #????????????????? | | ??????# ^ # """ "" #????????????????? | | #######^ [ # "" "" #????????????????? | | # ^ ^"" # " " #????????????????? | | "" # """" u #????????????????? | | "" # """" Y [ #????????????????? | | "" # ! ! ###########?????????? | | "" # " " * ?????????? | | + "G"[ g ????????? | | # """ ????????? | | # @ ????????? | | + ????????? | | #########+############# ######+#???????????? | | ???# #????! #??????????????????? | | ???# #?? #??????????????????? | | ???# ## """""" #??????????????????? | | ???# """" """" ## """""" #??????????????????? | | ???# """" """" ## ] """""" #??????????????????? | | ???# """" """" ## """""" #??????????????????? | | ???# """" """" ## """ ????#??????????????????? | | ???# """" """" ## ""F ??????????????????????????? | | ???# """" """" ## "" ??????????????????????????? | | ???# ##??"" ??????????????????????????? | | ???# #????"???????????????????????????? | | ???# #????????????????????????????????? | | ???##############????????????????????????????????? | | | | | | | | | | | | | | | | | | | +----------------------------------------------------+ Best States ------------- Heat Dissipation 34 Energy Generation 14 Energy Capacity 280 Matter Stores 300 Matter Capacity 300 Sight Range 16 Terrain Scan Range 16 Terrain Scan Density 10 Armor Coverage 600 Evasion (%) 40 Recoil Reduction 4 Item Schematics ----------------- None Robot Schematics ------------------ None Fabricated ------------ Nothing Alien Tech Used ----------------- None Achievements -------------- None Challenges ------------ None Game ------ Seed SubatomicPhysicsSink Manual? 0 Play Time 00:15:16 Cumulative 206.1 hours Start 2024.05.21 @ 17:04:57 End 2024.05.21 @ 17:20:28 Sessions 1 Manual Loads 0 Difficulty Rogue Special Mode None Game No. 196 Rogue 191 Adventurer 5 Explorer 0 Win Type - Total 3 Types 2/0/0/1/0/0/0/0/0 Lore% 57 Gallery% 77 Achievement% 56 Wizard Run 0 Options --------- Layout 2 ASCII 0 Keyboard 0 Movement Mouse Keybinds 0 Fullscreen 1 Font 24/Terminus Map View 50x44 Zoom Use 0% Tactical HUD 1 Map Filters NONE Filters NONE Steam 1 RUN: ccdad118-6646-4b9d-8834-7b35ffa6e07b